Cogmind - Beta 16 @@@ ROGUE MODE // 2025.12.23 @ 09:09:38 Player: PE-P51 Result: Destroyed by LM-GKC(R) with Subdweller Machine Gun Performance ------------- Evolutions (0) 0 Regions Visited (2) 400 Robots Destroyed (35) 175 Value Destroyed (898) 898 Prototype IDs (0) 0 Alien Tech Used (0) 0 Bonus (0) 0 TOTAL SCORE: 1473 Bonus ------- None Cogmind --------- Core Integrity 0/250 Matter 195/300 Energy 76/100 System Corruption 0% Temperature Cool (0) Movement Core (400) Ox7 Location -10/Subcaves Parts ------- > --- POWER (1) -------- (None) > --- PROPULSION (2) --- (None) > --- UTILITY (2) ------ Large Storage Unit > --- WEAPON (2) ------- Assault Rifle > --- INVENTORY (15) --- Ion Engine Light Treads Subdweller Monowheel Improved Heat Sink Improved Heat Sink Medium Matter Pod (100) High-capacity Matter Pod (200) Subdweller Laser Makeshift Laser Subdweller Beam Cannon Subdweller Beam Cannon Assault Rifle Subdweller Machine Gun Subdweller Shrapnel Launcher Datajack Peak State ------------ > --- POWER ------------ Subdweller Power Source > --- PROPULSION ------- Light Treads Light Treads > --- UTILITY ---------- Improved Heat Sink Large Storage Unit > --- WEAPON ----------- Makeshift Laser Subdweller Beam Cannon > --- INVENTORY -------- Ion Engine Light Treads Subdweller Monowheel Heat Sink Improved Heat Sink Medium Matter Pod High-capacity Matter Pod Subdweller Beam Cannon Assault Rifle Assault Rifle Assault Rifle Subdweller Machine Gun Grenade Launcher Subdweller Shrapnel Launcher Datajack [Rating: 16] Favorites ----------- Power Ion Engine Engine Ion Engine Propulsion Light Treads Treads Light Treads Leg Aluminum Leg Utility Large Storage Unit Device Improved Heat Sink Storage Large Storage Unit Weapon Beam Cannon Energy Gun Makeshift Laser Energy Cannon Beam Cannon Ballistic Gun Assault Rifle Launcher Grenade Launcher Special Melee Weapon Datajack Build | -11 -10 -10 ------- Run | Yrd Mat Sub Slots Evolved . | . . . Power . | . . . Propulsion . | . . . Utility . | . . . Weapon . | . . . Parts Attached 28 | . 13 15 Power 5 | . . 5 Engine 5 | . . 5 Core . | . . . Reactor . | . . . Propulsion 7 | . 5 2 Treads 4 | . 2 2 Leg 3 | . 3 . Wheel . | . . . Hover . | . . . Flight . | . . . Utility 5 | . 2 3 Device 4 | . 1 3 Storage 1 | . 1 . Processor . | . . . Hackware . | . . . Protection . | . . . Artifact . | . . . Weapon 11 | . 6 5 Energy Gun 1 | . . 1 Energy Cannon 4 | . 2 2 Ballistic Gun 3 | . 3 . Ballistic Cannon . | . . . Launcher 2 | . 1 1 Special Weapon . | . . . Impact Weapon . | . . . Slashing Weapon . | . . . Piercing Weapon . | . . . Special Melee Weapon 1 | . . 1 Unidentified Prototypes . | . . . Parts Lost 9 | . 1 8 Power 2 | . . 2 Propulsion 3 | . . 3 Utility 1 | . . 1 Weapon 3 | . 1 2 Highest Loss Streak 5 | . 1 5 To Critical Strikes . | . . . Average Backups 12 | . 10 14 Power . | . 1 . Propulsion 1 | . 1 2 Utility 4 | . 3 5 Weapon 4 | . 3 5 Tool/Special . | . . . Unused Backups 14 | . 3 11 Power . | . . . Propulsion 4 | . 2 2 Utility 6 | . . 6 Weapon 4 | . 1 3 Tool/Special . | . . . Average Slot Usage (%) 99 | . 99 99 Engine 13 | . 14 13 Treads 24 | . 20 27 Leg 3 | . 7 . Device 13 | . 13 13 Storage 14 | . 14 14 Energy Gun 4 | . 1 6 Energy Cannon 17 | . 13 20 Ballistic Gun 4 | . 10 . Peak Build Rating 16 | . 10 16 Average Rating 11 | . 9 12 On Entrance 7 | 6 6 10 Avg Prop Armor Cover (%) . | . . . Naked Turns . | . . . Heaviest Build 37 | 14 32 37 Greatest Support 40 | 20 40 40 Greatest Overweight (x) 1 | . . 1 Average Overweight (x) . | . . . Largest Inventory Capacity 15 | . 15 15 Average Capacity 14 | . 12 15 Most Carried 15 | . 14 15 Average Carried 12 | . 10 14 Final Capacity 15 | 8 15 15 Final Carried 15 | 6 14 15 Class Distribution -------------------- 81% | Mutant 18% | Scavenger-Mutant Dominant Class ---------------- Mutant | -10/Materials Mutant | -10/Subcaves Resources | -11 -10 -10 ----------- Run | Yrd Mat Sub Matter Collected 1134 | 200 568 366 Remotely . | . . . Salvage Created 939 | . 441 498 Parts 65 | . 36 29 Haulers Intercepted 2 | . 2 . Recyclers Shooed 3 | . 3 . Parts Field Recycled . | . . . Retrieved Matter . | . . . Parts Self-Destructed 20 | . . 20 Prevented . | . . . Parts Restored . | . . . Kills | -11 -10 -10 ------- Run | Yrd Mat Sub Combat Hostiles Destroyed 26 | . 13 13 Guns 3 | . 2 1 Cannons 15 | . 6 9 AOE 7 | . 5 2 Classes Destroyed 10 | . 7 3 Worker 2 | . 2 . Tunneler 1 | . 1 . Hauler 2 | . 2 . Operator 1 | . 1 . Turret 2 | . . 2 Watcher 1 | . 1 . Swarmer 8 | . 6 2 Grunt 7 | . 7 . Sentry 1 | . . 1 Subdweller 10 | . . 10 Best Kill Streak 6 | . 6 2 Combat Bots Only 5 | . 5 2 Max Kills in Single Turn 2 | . 2 1 Gunslinging . | . . . Exploded 2 | . 2 1 Melee . | . . . Uniques/NPCs Destroyed . | . . . Combat | -11 -10 -10 -------- Run | Yrd Mat Sub Hostile Shots Fired 141 | . 51 90 Missed 49 | . 14 35 Hits 92 | . 37 55 Projectile 92 | . 37 55 AOE 4 | . . 4 Damage Taken 1634 | . 601 1033 Core 260 | . 62 198 Absorbed by Shields . | . . . Core Remaining (%) 100 | 100 . . Volleys Fired 137 | . 51 86 Largest 2 | . 2 2 Hottest 160 | . 120 160 Shots Fired 242 | . 89 153 Gun 95 | . 52 43 Cannon 132 | . 28 104 Launcher 15 | . 9 6 Special . | . . . Kinetic 55 | . 51 4 Thermal 176 | . 29 147 Explosive 11 | . 9 2 Electromagnetic . | . . . Robot Hit Streak 9 | . 6 9 Robot Miss Streak 4 | . 3 4 Penetration Max . | . . . Secondary Targets . | . . . Shots Hit Robots 103 | . 54 49 Core Hits 45 | . 26 19 Critical Kills 2 | . . 2 Critical Parts Destroyed . | . . . Critical Strikes 4 | . . 4 Burn 2 | . . 2 Meltdown 2 | . . 2 Melee Attacks . | . . . Impact . | . . . Slashing . | . . . Piercing . | . . . Sneak Attacks . | . . . Combat Hostiles . | . . . Follow-up Attacks . | . . . Damage Inflicted 2526 | . 1173 1353 Guns 485 | . 397 88 Cannons 1167 | . 314 853 Explosions 845 | . 433 412 Melee . | . . . Ramming 29 | . 29 . Kinetic 700 | . 397 303 Thermal 1255 | . 314 941 Explosive 542 | . 433 109 Electromagnetic . | . . . Impact . | . . . Slashing . | . . . Piercing . | . . . Highest Corruption . | . . . Average Corruption . | . . . Corruption Purged . | . . . Corruption Blocked . | . . . Overload Shots . | . . . Overflow Damage 13 | . . 13 Projectiles 5 | . . 5 Explosions 8 | . . 8 Melee . | . . . Knockbacks . | . . . Impact . | . . . Kinetic . | . . . Secondary . | . . . Self-Inflicted Damage 214 | . 214 . Shots 3 | . 3 . Rammed 4 | . 4 . Targets Rammed 7 | . 7 . Kicked 2 | . 2 . Crushed 1 | . 1 . Highest Temperature 96 | . 96 39 Average Temperature 21 | . 32 12 Received Heat Transfer 309 | . 165 144 Siege Activations . | . . . Martial Activations . | . . . Shielding Activations . | . . . Robots Disrupted . | . . . Combat Hostiles . | . . . Robots Corrupted . | . . . Combat Hostiles . | . . . Parts Fried . | . . . Impact Corruptions . | . . . Robots Melted 2 | . . 2 Combat Hostiles 1 | . . 1 Parts Melted 5 | . 1 4 Heat Transferred 2368 | . 666 1702 Parts Sabotaged . | . . . Parts Stolen . | . . . Parts Stripped . | . . . Power Chain Reactions . | . . . Alert | -11 -10 -10 ------- Run | Yrd Mat Sub Maximum Alert Level . | . . . Low Security (%) 100 | . 100 . Level 1 . | . . . Level 2 . | . . . Level 3 . | . . . Level 4 . | . . . Level 5 . | . . . High Security . | . . . Max Security . | . . . Peak Influence 170 | . 170 . Initial . | . . . Average 52 | . 52 . Influence Increases 876 | . 506 370 Destroy 0b10 Robot/C 360 | . 260 100 Destroy 0b10 Robot/NC 35 | . 35 . Destroy Leader 56 | . 56 . Successful Hack 12 | . 12 . Disable Machine 45 | . 45 . Destroy Structure 83 | . 83 . Lose Combat Pursuer 285 | . 15 270 Influence Decreases 717 | . 434 283 Entered New Map 36 | . . 36 Time Decay 601 | . 424 177 Lost Part 80 | . 10 70 Squads Dispatched 5 | . 5 . Investigation 3 | . 3 . Extermination . | . . . Reinforcement 2 | . 2 . Assault . | . . . Garrison . | . . . Intercept . | . . . Searches Triggered . | . . . Construction Impeded . | . . . Haulers Reinforced . | . . . Active Scanning Responses . | . . . Cargo Convoy Interrupts . | . . . Stealth | -11 -10 -10 --------- Run | Yrd Mat Sub Distress Signals 1 | . 1 . Communications Jammed . | . . . Distress Signals . | . . . Times Spotted 59 | . 31 28 Peak Tracking Total 6 | . 6 4 Tactical Retreats 12 | . 1 11 Traps | -11 -10 -10 ------- Run | Yrd Mat Sub Traps Triggered 3 | . 2 1 Indirectly . | . . . Trap Hack Attempts 92 | . . 92 Triggered 1 | . . 1 Disarmed . | . . . Reprogrammed 7 | . . 7 Reused 1 | . . 1 Traps Extracted . | . . . Installed . | . . . Triggered . | . . . Machines | -11 -10 -10 ---------- Run | Yrd Mat Sub Machines Disabled 4 | . 3 1 Max in Single Turn 2 | . 2 1 Machines Repaired . | . . . Machines Dismantled . | . . . Machines Sabotaged . | . . . Overloaded Fab Kills . | . . . Hacking | -11 -10 -10 --------- Run | Yrd Mat Sub Machines Accessed 8 | . 8 . Terminals 6 | . 6 . Fabricators . | . . . Repair Stations . | . . . Recycling Units 2 | . 2 . Scanalyzers . | . . . Garrison Access . | . . . Total Hacks 16 | . 16 . Successful 4 | . 4 . Failed 12 | . 12 . Catastrophic 2 | . 2 . Database Lockouts . | . . . Manual 4 | . 4 . Terminals 11 | . 11 . Fabricators . | . . . Repair Stations . | . . . Recycling Units 5 | . 5 . Scanalyzers . | . . . Garrison Access . | . . . Terminal Hacks 3 | . 3 . Locate Traps 1 | . 1 . Registered Components 1 | . 1 . Zone Layout 1 | . 1 . Fabricator Hacks . | . . . Repair Station Hacks . | . . . Recycling Unit Hacks 1 | . 1 . Retrieve Components 1 | . 1 . Scanalyzer . | . . . Garrison Access Hacks . | . . . Unauthorized Hacks . | . . . Terminals . | . . . Fabricators . | . . . Repair Stations . | . . . Recycling Units . | . . . Scanalyzers . | . . . Garrison Access . | . . . Data Cores Recovered . | . . . Used . | . . . Hacking Detections 7 | . 7 . Full Trace Events 1 | . 1 . Feedback Events . | . . . Feedback Blocked . | . . . Robot Schematics Acquired . | . . . Robots Built . | . . . Authchips . | . . . Time . | . . . Total Robot Build Rating . | . . . Part Schematics Acquired . | . . . Parts Built . | . . . Authchips . | . . . Time . | . . . Total Part Build Rating . | . . . Part Studies Acquired . | . . . Parts Repaired . | . . . Time . | . . . Parts Recycled . | . . . Recycled Matter . | . . . Retrieved Matter . | . . . Retrieved Components 9 | . 9 . Parts Scanalyzed . | . . . Part Schematics Acquired . | . . . Parts Damaged . | . . . Bothacking | -11 -10 -10 ------------ Run | Yrd Mat Sub Used RIF Installer . | . . . Robots Hacked . | . . . Non-combat . | . . . Combat . | . . . Robot Hacks Applied . | . . . Relay Couplers Released . | . . . Fabnet Peak Effective % . | . . . Robots Rewired . | . . . Allies Hacked . | . . . Hacks Repelled . | . . . Allies | -11 -10 -10 -------- Run | Yrd Mat Sub Total Allies . | . . . Largest Group . | . . . Highest-Rated Group . | . . . Highest-Rated Ally . | . . . Total Orders . | . . . Ally Attacks . | . . . Total Damage . | . . . Kills . | . . . Allies Corrupted . | . . . Allies Melted . | . . . Intel | -11 -10 -10 ------- Run | Yrd Mat Sub Active Infowar (turns) 649 | . . 649 Optics 649 | . . 649 Robot Analysis Total . | . . . Derelict Logs Recovered . | . . . Drone Launches . | . . . Drone Recoveries . | . . . Exploration | -11 -10 -10 ------------- Run | Yrd Mat Sub Turns Passed 4192 | . 1797 2395 Spaces Moved 1959 | 1 993 965 Core . | . . . Treads 1687 | . 722 965 Legs 272 | 1 271 . Wheels . | . . . Hover . | . . . Flight . | . . . Fastest Speed 120 | 120 120 160 Average Speed 154 | 120 149 160 Slowest Speed 240 | 120 160 240 Overloaded Moves . | . . . Propulsion Burnouts . | . . . Robots Hopped . | . . . Potential Cave-ins . | . . . Cave-ins Triggered . | . . . Exploration Rate (%) 49 | 2 98 47 Regions Visited 2 Branch Regions 1 Pre-discovered Areas . | . . . Known Exits Taken . | . . . Unknown Exits Taken 2 | 1 1 . Scrap Searched 4 | . . 4 Spaces Dug 5 | . . 5 Terrain Destroyed 137 | . 99 38 Melee . | . . . Projectile 7 | . . 7 AOE 130 | . 99 31 Terrain Rammed . | . . . Walls Destroyed . | . . . Machines Disabled . | . . . Actions | -11 -10 -10 --------- Run | Yrd Mat Sub Total 2868 | . 1216 1652 Wait 588 | . 127 461 Move 1957 | . 992 965 Hop . | . . . Pick Up 23 | . 14 9 Fast Attach 6 | . 1 5 Attach 3 | . 1 2 Detach . | . . . Swap 34 | . 14 20 Drop 21 | . 9 12 Fire 137 | . 51 86 Melee . | . . . Ram . | . . . Kick 2 | . 2 . Crush 5 | . 5 . Escape Stasis . | . . . Rewire . | . . . Trap 92 | . . 92 Miscellaneous . | . . . Route ------- -11/Scrapyard -10/Materials (discovered 6 exits: [*Mat x3] / [*Min x2] / [*Sub]) -10/Subcaves (discovered 2 exits: [*Rec] / [*Scr]) History --------- Turn | Location | Event 1 | -11/Scrapyard | Discovered new exit (range 0) 1 | -11/Scrapyard | Entered Materials 2 | -10/Materials | Met a group of wandering Federalists 17 | -10/Materials | Discovered new exit (range 16) 98 | -10/Materials | Lost 3 allies 175 | -10/Materials | Discovered new exit (range 15) 307 | -10/Materials | Build established: Mutant 339 | -10/Materials | Discovered new exit (range 4) 556 | -10/Materials | Discovered new exit (range 12) 742 | -10/Materials | Discovered new exit (range 4) 775 | -10/Materials | Discovered new exit (range 15) 1798 | -10/Materials | Entered Subcaves 1799 | -10/Subcaves | Continued accompanying wandering Federalists (1) 1799 | -10/Subcaves | Approached by a straggling Scientist 1871 | -10/Subcaves | Scientist uncovered a shortcut to Scraptown 1959 | -10/Subcaves | Ambushed by angry Subdweller bent on revenge 2066 | -10/Subcaves | Discovered new exit (range 11) 2492 | -10/Subcaves | Build established: Scavenger-Mutant 2849 | -10/Subcaves | Shifting Twisted Machinery released Battle Cannon 3064 | -10/Subcaves | Shifting Twisted Machinery released Flamer 3080 | -10/Subcaves | Disturbed a concealed Subdweller 3201 | -10/Subcaves | A swath of the cavern ceiling suddenly collapsed 3374 | -10/Subcaves | Build established: Mutant 3536 | -10/Subcaves | A swath of the cavern ceiling suddenly collapsed 4168 | -10/Subcaves | Core integrity fell below 50% 4184 | -10/Subcaves | Core integrity fell below 20% 4193 | -10/Subcaves | Destroyed by LM-GKC(R) with Subdweller Machine Gun Last Messages --------------- 03842_ Beam Rifle fries itself beyond repair. 03892_ Sub. Monowheel melted. 03892_ 9Z-C1L(R) destroyed. 03939_ Sub. Optics shoots sparks and powers down. 03943_ Sub. Power Source shoots sparks and powers down. 03943_ Dropped Broken Sub. Optics. 03963_ Acquired Sub. Optics. 03993_ Dropped Broken Sub. Power Source. 03994_ Acquired Sub. Power Source. 03995_ Acquired 19 matter. 04024_ Acquired 1 matter. 04172_ Sub. Beam Cannon shoots sparks and powers down. 04173_ Lgt. Treads destroyed. 04179_ Sub. Power Source destroyed. 04181_ Sub. Optics destroyed. 04183_ Grenade Launcher destroyed. 04185_ FR-39A(R) destroyed. 04187_ LM-GKC(R): "NOSTUCKSUB!" 04188_ Lgt. Treads destroyed. 04189_ 29-I3A(R) destroyed. Map ----- +----------------------------------------------------+ | ?????????????????????????????##### ## #? | | ?????????????????????????????????###### #? | | ?????????????????????????????????????## #? | | ??????????????????????????????????#### ##? | | ?????????????????????????????????## ##?? | | ??????????????????????? ????????## #??? | | ?????????????????????? #??????## #??? | | ?????????????????????? #???### #####??? | | ?????????????????????? ?### ##??????? | | ?????????????????????? ?# #???????? | | ??????????????????????? ?# ### #???????? | | ??????????????????????? ?## #### ##???????? | | ???????????????????????# ##### ! #####??????? | | ??????????????????????## ##?## #??????? | | ??????????????????????# ??#" #??????? | | ??????????????????????# ??#" ###????? | | ??????????????????????? #??## ##???? | | ???????????????????????? #???# ####? | | ????????????????????????# #???# #? | | ???????????????????##?### ##??# #### ##? | | ???????????????????# ## # ;#### ##??### ##?? | | ???????????????????# ## ##?????####??? | | ????????????????????# ;# %##????????????? | | ???????????????????## ## =%##?####?####??? | | ?????????????????### ### ### ### ##?? | | ?????????????????# @ ## #?? | | ?????????????????# #?? | | ?????????????????# #?? | | ?????????????????## ##?? | | ??????????????????### ; #??? | | ????????????????????##### R ### #??? | | ????????????????????????## ;; % #### #??? | | ?????????????????????????? ; [ ### #??? | | ??????????????????????????## #??? | | ????????????????????????????# ##??? | | ????????????????????????????? ;; #???? | | ?????????????????????????????### ;; ##??? | | ???????????????????????????????# ## ! ##?? | | ???????????????????????????????## ## ## #?? | | ????????????????????????????????#### ### #?? | | ???????????????????????????????????## #?##& #?? | | ????????????????????????????????????# ###& & ##?? | | ?????????????????????????????#????### ##* #??? | | ???????????????????????????##""""## "" #### ##??? | | ???????????????????????????#"""" " ## ###? | | ???????????????????????????"""" " ### #? | | ??????????????????????????"""" ### ## "## #? | | ??????????????????????????"""" ???##?####" #? | | ??????????????????????????? ???????????##" ##? | | ?????????????????????????????????????????#" " #?? | +----------------------------------------------------+ Best States ------------- Heat Dissipation 39 Energy Generation 15 Energy Capacity 250 Matter Stores 300 Matter Capacity 300 Sight Range 21 Terrain Scan Density 10 Evasion (%) 55 Recoil Reduction 2 Item Schematics ----------------- None Robot Schematics ------------------ None Fabricated ------------ Nothing Repaired ---------- Nothing Studied --------- None Alien Tech Used ----------------- None Achievements -------------- None Challenges ------------ None Game ------ Seed TachyonChromaticWeb Manual? 0 Play Time 00:18:24 Cumulative 224.8 hours Start 2025.12.23 @ 08:47:57 End 2025.12.23 @ 09:09:38 Sessions 1 Manual Loads 0 Difficulty Rogue Special Mode None Game No. 305 Rogue 304 Adventurer 1 Explorer 0 Win Type - Total 2 Types 1/0/0/1/0/0/0/0/0/0 Lore% 67 Gallery% 62 Achievement% 55 Wizard Run 0 Options --------- Layout 0 ASCII 0 Keyboard 0 Movement Numpad Keybinds 0 Fullscreen 1 Font 24/Smallcaps Map View 76x50 Zoom Use 0% Tactical HUD 1 Map Filters NONE Filters NONE Steam 1 RUN: fe05e481-c4bb-4757-b0b5-afd102164c0e